bitfinex-derivatives/quotes_BTCF0:USTF0_20251229
["timestamp","ask_amount","ask_price","bid_price","bid_amount"]
[1766968305633,0.0113412,88245.0,88218.0,0.0113445]
[1766968305836,0.0113412,88245.0,88221.0,0.0113441]
[1766968306132,0.011341,88246.0,88220.0,0.0113442]
[1766968306333,0.0113414,88243.0,88220.0,0.0113442]
[1766968306635,0.15456,88248.0,88215.0,0.0113449]
[1766968307038,0.0113419,88239.0,88215.0,0.0113449]
[1766968307237,0.0113421,88237.0,88215.0,0.0113449]
[1766968307436,0.09644,88236.0,88211.0,0.01142755]
[1766968307629,0.09644,88236.0,88211.0,8.215e-05]
[1766968308038,0.09644,88236.0,88217.0,0.0113446]
[1766968308233,0.09644,88236.0,88218.0,0.01773649]
[1766968308428,0.09644,88236.0,88217.0,0.0113446]
[1766968308429,0.09644,88236.0,88219.0,0.01773649]
[1766968308632,0.09644,88236.0,88220.0,0.01773649]
[1766968308836,0.09644,88236.0,88217.0,0.0113446]
[1766968309036,0.09644,88236.0,88218.0,0.03065776]
[1766968309240,0.0113429,88232.0,88211.0,8.215e-05]
[1766968309441,0.0113432,88229.0,88211.0,8.215e-05]
[1766968309738,0.05804,88228.0,88208.0,0.0601005]
[1766968309934,0.05804,88228.0,88209.0,0.0113457]
[1766968310535,0.05804,88228.0,88205.0,0.0601005]
[1766968310735,0.05804,88228.0,88206.0,0.0601005]
[1766968310936,8.215e-05,88227.0,88206.0,0.0601005]
[1766968311243,8.215e-05,88227.0,88211.0,0.0113454]
[1766968311445,8.215e-05,88227.0,88214.0,0.0113451]
[1766968311835,8.215e-05,88227.0,88210.0,0.0113455]
[1766968312030,8.215e-05,88227.0,88207.0,0.0113459]
[1766968312244,0.09644,88226.0,88205.0,0.0601005]
[1766968312832,0.01303338,88239.0,88227.0,0.0113434]
[1766968313037,0.128,88238.0,88227.0,0.0113434]
[1766968313232,0.09644,88237.0,88227.0,0.0113434]
[1766968313442,0.0113394,88259.0,88223.0,0.098707]
[1766968313745,0.0113399,88255.0,88224.0,0.0601005]
[1766968313939,0.00017002,88248.0,88233.0,0.0113426]
[1766968314640,0.00017002,88248.0,88231.0,0.00017002]
[1766968315843,0.01302948,88266.0,88232.0,0.0601005]
[1766968316047,0.01134,88254.0,88232.0,0.0601005]
[1766968316243,0.15444,88255.0,88228.0,0.06055089]
[1766968316443,0.15444,88255.0,88214.0,0.10213059]
[1766968316444,0.09644,88254.0,88211.0,0.07881439]
[1766968316643,0.09644,88254.0,88212.0,0.0113453]
[1766968317041,0.0113423,88236.0,88212.0,0.0113453]
[1766968317240,0.15444,88235.0,88216.0,0.0113448]
[1766968317443,0.00017002,88233.0,88223.0,0.0113438]
[1766968317650,0.00125,88231.0,88223.0,0.0113438]
[1766968318247,0.00010089,88231.0,88215.0,0.00017002]
[1766968318953,0.00010089,88231.0,88222.0,0.011344]
[1766968319751,0.00010089,88231.0,88218.0,0.0113445]
[1766968319948,0.00010089,88231.0,88216.0,0.0113448]
[1766968320147,0.00010089,88231.0,88220.0,0.0113443]
[1766968320343,0.07953998,88287.0,88228.0,0.0113432]
[1766968320542,0.07953998,88287.0,88206.0,0.07881439]
[1766968320543,0.0113407,88248.0,88209.0,0.07881439]
[1766968320742,0.0113386,88265.0,88199.0,0.10213059]
[1766968320743,0.1544,88247.0,88225.0,0.0113436]
[1766968320943,0.0113395,88258.0,88234.0,0.0113425]
[1766968321143,0.09644,88260.0,88235.0,0.01773491]
[1766968321348,0.09644,88260.0,88232.0,0.0113426]
[1766968321349,0.00017002,88256.0,88253.0,2e-08]
[1766968321748,0.0113398,88255.0,88253.0,2e-08]
[1766968322555,0.00017002,88256.0,88253.0,2e-08]
[1766968322743,0.01150972,88256.0,88253.0,2e-08]
[1766968323850,0.01150972,88256.0,88226.0,0.0113435]
[1766968323851,0.0113405,88250.0,88226.0,0.0113435]
[1766968324046,0.1544,88249.0,88233.0,0.0113425]
[1766968324250,0.0113387,88264.0,88240.0,0.0113417]
[1766968324560,0.011339,88262.0,88241.0,0.01773296]
[1766968324748,0.011339,88262.0,88242.0,0.01773296]
[1766968324955,0.00017002,88260.0,88243.0,0.01790298]
[1766968325254,0.00017002,88260.0,88243.0,0.00017002]
[1766968325450,0.00017002,88260.0,88244.0,0.01773273]
[1766968325758,0.1544,88259.0,88245.0,0.01773273]
[1766968326053,0.1544,88259.0,88246.0,0.01773273]
[1766968326258,0.1544,88259.0,88243.0,0.00017002]
[1766968326458,0.1544,88259.0,88244.0,0.01773223]
[1766968326653,0.0113394,88258.0,88243.0,0.00017002]
[1766968327448,0.1544,88259.0,88243.0,0.00017002]
[1766968327651,0.1544,88259.0,88244.0,0.01773219]
[1766968327849,2e-08,88260.0,88245.0,0.11417209]
[1766968328054,2e-08,88260.0,88254.0,0.0113399]
[1766968328547,2e-08,88260.0,88250.0,0.0113404]
[1766968328854,2e-08,88260.0,88251.0,0.01772955]
[1766968329044,2e-08,88260.0,88243.0,0.05809002]
[1766968329246,0.0113394,88259.0,88243.0,0.00017002]
[1766968329451,0.00907395,88259.0,88243.0,0.00017002]
[1766968329865,2e-08,88260.0,88246.0,0.0113409]
[1766968330157,2e-08,88260.0,88254.0,0.0113399]
[1766968330654,2e-08,88260.0,88257.0,0.0113395]
[1766968331460,0.0113353,88291.0,88266.0,0.0113383]
[1766968331658,0.1077753,88291.0,88269.0,0.0113379]
[1766968331849,0.1077753,88291.0,88268.0,0.0113381]
[1766968332360,0.09644,88291.0,88271.0,0.0113377]
[1766968332556,0.00016992,88288.0,88271.0,0.00016992]
[1766968332759,0.00016992,88288.0,88279.0,0.0113367]
[1766968332952,0.00016992,88288.0,88277.0,0.09644]
[1766968333955,0.09644,88299.0,88277.0,0.09644]
[1766968334154,0.24108,88322.0,88278.0,0.05788]
[1766968334155,0.0113337,88303.0,88278.0,0.05788]
[1766968334355,0.15428,88306.0,88278.0,0.05788]
[1766968334558,0.0113335,88304.0,88278.0,0.05788]
[1766968335058,0.00016992,88300.0,88286.0,0.0113358]
[1766968335257,0.00016992,88300.0,88282.0,0.00016992]
[1766968335757,0.00016992,88300.0,88282.0,0.01150622]
[1766968335964,0.00016992,88300.0,88289.0,0.0113354]
[1766968336263,0.0964,88309.0,88289.0,0.0113354]
[1766968336564,0.0964,88309.0,88282.0,0.00016992]
[1766968336565,0.0113324,88313.0,88290.0,0.15424]
[1766968336747,0.0113316,88319.0,88293.0,0.0113349]
[1766968336952,0.0113314,88321.0,88296.0,0.0113344]
[1766968337350,0.00016992,88317.0,88300.0,0.00016992]
[1766968337568,0.011332,88316.0,88313.0,9e-08]
[1766968337769,0.00016992,88317.0,88274.0,0.0113373]
[1766968337952,0.0113342,88299.0,88275.0,0.1655772]
[1766968338262,0.0113341,88300.0,88276.0,0.0964]
[1766968338457,0.0113345,88297.0,88276.0,0.0964]
[1766968338764,0.0113345,88297.0,88278.0,0.00016992]
[1766968338765,0.00016992,88295.0,88278.0,0.00016992]
[1766968339461,0.00016992,88295.0,88279.0,0.0964]
[1766968339761,0.0113363,88283.0,88257.0,0.04035211]
[1766968339955,0.0113363,88283.0,88258.0,0.0578]
[1766968340165,0.0113352,88291.0,88268.0,0.0113381]
[1766968340355,0.0113352,88291.0,88264.0,0.0113386]
[1766968340356,0.0113353,88291.0,88264.0,0.0113386]
[1766968340665,0.00016992,88295.0,88283.0,0.0113362]
[1766968340963,0.00016992,88295.0,88281.0,0.0113364]
[1766968341171,0.00016992,88295.0,88284.0,0.011336]
[1766968341556,0.00016992,88295.0,88280.0,0.11467133]
[1766968341557,2e-08,88295.0,88280.0,0.11467133]
[1766968342059,2e-08,88295.0,88293.0,0.0113349]
[1766968342257,2e-08,88295.0,88289.0,0.0113354]
[1766968342767,2e-08,88295.0,88288.0,0.0113356]
[1766968343355,2e-08,88295.0,88291.0,0.0113351]
[1766968345657,2e-08,88295.0,88292.0,0.1542]
[1766968345858,2e-08,88295.0,88293.0,0.0964]
[1766968346058,2e-08,88295.0,88294.0,0.0113348]
[1766968346365,2e-08,88295.0,88288.0,0.0113355]
[1766968346664,2e-08,88295.0,88294.0,0.0113348]
[1766968346967,0.0964,88323.0,88299.0,0.0113341]
[1766968347165,0.0113313,88322.0,88300.0,0.05776]
[1766968347563,0.0964,88323.0,88301.0,0.0113338]
[1766968347762,0.0113313,88322.0,88300.0,0.05776]
[1766968347964,0.0964,88323.0,88302.0,0.00016992]
[1766968347965,0.0113322,88315.0,88302.0,0.00016992]
[1766968348163,0.0113316,88319.0,88302.0,0.05792992]
[1766968348667,0.00016992,88320.0,88302.0,0.05792992]
[1766968349768,2e-08,88320.0,88302.0,0.05792992]
[1766968349969,2e-08,88320.0,88311.0,0.0113326]
[1766968350171,2e-08,88320.0,88302.0,0.05792992]
[1766968350372,2e-08,88320.0,88309.0,0.0113328]
[1766968350575,0.11450141,88350.0,88302.0,0.05792992]
[1766968350576,0.0113292,88338.0,88302.0,0.05792992]
[1766968350870,0.0113292,88338.0,88314.0,0.0113321]
[1766968351171,0.09636,88340.0,88310.0,0.0113327]
[1766968351377,0.0113304,88329.0,88311.0,0.0177159]
[1766968351670,0.01150023,88329.0,88312.0,0.15412]
[1766968351876,0.0113308,88326.0,88312.0,0.15412]
[1766968352176,0.00016983,88329.0,88307.0,0.0113331]
[1766968352477,0.00016983,88329.0,88308.0,0.15408]
[1766968352677,0.00016983,88329.0,88309.0,0.0113329]
[1766968352978,0.0113309,88325.0,88310.0,0.15408]
[1766968353175,0.00016983,88329.0,88302.0,0.00016992]
[1766968353475,0.00016983,88329.0,88303.0,0.15408]
[1766968353779,0.00016983,88329.0,88302.0,0.00016992]
[1766968353780,0.0113325,88312.0,88302.0,0.15424992]
[1766968354084,0.00016983,88329.0,88277.0,0.05168911]
[1766968354085,0.0113341,88300.0,88277.0,0.05168911]
[1766968354281,0.0113336,88304.0,88279.0,0.0113367]
[1766968354578,0.0113336,88304.0,88282.0,0.0113363]
[1766968354781,0.011335,88293.0,88273.0,0.04035211]
[1766968354984,0.011335,88293.0,88274.0,0.15408]
[1766968355183,0.09636,88301.0,88274.0,0.15408]
[1766968355184,0.00016983,88292.0,88274.0,0.00016983]
[1766968355686,0.0113357,88288.0,88274.0,0.00016983]
[1766968355994,0.0113365,88282.0,88264.0,0.05772]
[1766968356582,0.0113359,88286.0,88264.0,0.05772]
[1766968356979,0.0113364,88282.0,88266.0,0.00016992]
[1766968357194,0.0113366,88280.0,88266.0,0.00016992]
[1766968357796,0.0113361,88284.0,88266.0,0.00016992]
[1766968358288,0.0113371,88277.0,88266.0,0.00016992]
[1766968358788,0.0113365,88281.0,88258.0,0.05768]
[1766968358993,0.0113365,88281.0,88259.0,0.01772687]
[1766968359185,0.11450141,88280.0,88257.0,0.03013563]
[1766968359394,0.11450141,88270.0,88255.0,0.03013563]
[1766968359587,0.09636,88273.0,88253.0,0.03013563]
[1766968359779,0.11450141,88270.0,88254.0,0.00016988]
[1766968360178,0.12584011,88264.0,88249.0,0.03013563]
[1766968360487,0.0113391,88261.0,88244.0,0.03013563]
[1766968360791,0.01134,88254.0,88242.0,0.03013563]
[1766968361091,0.01134,88254.0,88238.0,0.00022643]
[1766968361394,0.0113395,88258.0,88238.0,0.00022643]
[1766968361690,0.09636,88263.0,88238.0,0.00022643]
[1766968362291,0.11450141,88260.0,88231.0,0.00014527]
[1766968362596,0.01150992,88254.0,88231.0,0.00014527]
[1766968362792,0.15404,88253.0,88231.0,0.00014527]
[1766968365298,0.15404,88253.0,88218.0,0.04035211]
[1766968365299,0.11450141,88241.0,88218.0,0.04035211]
[1766968365485,0.00016992,88238.0,88213.0,0.0113452]
[1766968366386,0.00010723,88237.0,88213.0,0.0113452]
[1766968366582,0.00010723,88237.0,88210.0,0.05768]
[1766968366889,0.00010723,88237.0,88217.0,0.0113447]
[1766968367084,0.00010723,88237.0,88210.0,0.05768]
[1766968367389,0.00010723,88237.0,88217.0,0.0113446]
[1766968367696,0.00010723,88237.0,88211.0,0.0113454]
[1766968367893,0.0113425,88235.0,88213.0,0.05768]
[1766968368897,0.00010723,88237.0,88213.0,0.0690251]
[1766968369099,0.01144943,88237.0,88213.0,0.0690251]
[1766968369793,0.0113426,88234.0,88213.0,0.05768]
[1766968370099,0.0113439,88224.0,88194.0,0.04057866]
[1766968370295,0.00017002,88218.0,88195.0,0.15404]
[1766968370599,9.146e-05,88217.0,88195.0,0.15404]
[1766968371198,9.146e-05,88217.0,88200.0,0.0113468]
[1766968371787,9.146e-05,88217.0,88199.0,0.05764]
[1766968372196,9.146e-05,88217.0,88194.0,0.00022655]
[1766968372197,0.11450141,88210.0,88195.0,0.05764]
[1766968372499,0.05764,88215.0,88195.0,0.05764]
[1766968372700,0.05764,88215.0,88194.0,0.00022655]
[1766968372893,0.05764,88215.0,88194.0,0.05786655]
[1766968373090,0.05764,88215.0,88194.0,0.00022655]
[1766968373294,0.05764,88215.0,88194.0,0.05786655]
[1766968373596,0.05764,88215.0,88194.0,0.00022655]
[1766968374096,0.05764,88215.0,88202.0,0.0113465]
[1766968374305,0.05764,88228.0,88210.0,0.0113455]
[1766968374488,0.05764,88228.0,88205.0,0.0113461]
[1766968374688,0.05764,88228.0,88208.0,0.0113458]
[1766968374993,0.05764,88228.0,88212.0,0.0113453]
[1766968375196,0.05764,88228.0,88208.0,0.0113458]
[1766968375400,5.381e-05,88227.0,88211.0,0.00017002]
[1766968376785,0.0113436,88226.0,88211.0,0.00017002]
[1766968377089,5.381e-05,88227.0,88211.0,0.00017002]
[1766968377799,0.05764,88228.0,88211.0,0.00017002]
[1766968377800,1e-08,88228.0,88211.0,0.00017002]
[1766968378098,1e-08,88228.0,88211.0,0.05781002]
[1766968378699,0.0113438,88224.0,88211.0,0.00017002]
[1766968379301,0.0113446,88218.0,88197.0,0.0113473]
[1766968379502,0.011345,88215.0,88197.0,0.0576]
[1766968379690,0.011345,88215.0,88193.0,0.15630777]
[1766968380099,0.0113454,88212.0,88193.0,0.00226777]
[1766968380398,0.0576,88212.0,88193.0,0.00226777]
[1766968380600,0.01303615,88230.0,88200.0,0.11450141]
[1766968380902,0.011343,88231.0,88209.0,0.0113457]
[1766968381108,0.11624,88228.0,88209.0,0.0113457]
[1766968381290,0.0113425,88235.0,88215.0,0.0113449]
[1766968381490,0.0113419,88239.0,88215.0,0.0113449]
[1766968381695,0.0113428,88233.0,88210.0,0.0113456]
[1766968381901,0.0576,88234.0,88193.0,0.00226777]
[1766968381902,0.11450141,88230.0,88193.0,0.00226777]
[1766968382100,0.11450141,88220.0,88196.0,0.0113474]
[1766968382401,0.0113446,88218.0,88197.0,0.11417852]
[1766968382702,0.0113446,88218.0,88198.0,0.01773852]
[1766968382901,0.0113446,88218.0,88193.0,0.00226777]
[1766968382902,0.0576,88223.0,88193.0,0.00226777]
[1766968383103,0.0113464,88204.0,88193.0,0.00226777]
[1766968383292,0.00017002,88207.0,88193.0,0.00226777]
[1766968383795,0.00017002,88207.0,88197.0,0.0113472]
[1766968383986,2e-08,88207.0,88200.0,0.0113468]
[1766968384191,2e-08,88207.0,88204.0,0.0113464]
[1766968384507,0.09644,88234.0,88205.0,0.0177399]
[1766968384693,0.09644,88234.0,88216.0,0.0113448]
[1766968384888,0.09644,88243.0,88225.0,0.0113436]
[1766968385093,0.15404,88247.0,88225.0,0.0113436]
[1766968385298,0.0113414,88244.0,88221.0,0.0113442]
[1766968385602,0.00017002,88241.0,88224.0,0.00017002]
[1766968385995,0.24112,88268.0,88233.0,0.0113426]
[1766968385996,0.09644,88254.0,88233.0,0.0113426]
[1766968386202,0.09644,88254.0,88221.0,0.09644]
[1766968386203,0.0576,88254.0,88236.0,0.0113422]
[1766968386396,0.0576,88254.0,88237.0,0.01773334]
[1766968386590,0.0113401,88253.0,88238.0,0.01773334]
[1766968386796,0.0576,88254.0,88233.0,0.09644]
[1766968387000,0.00017002,88252.0,88235.0,0.00017002]
[1766968387195,0.00017002,88252.0,88236.0,0.01773296]
[1766968387404,0.00017002,88252.0,88235.0,0.00017002]
[1766968387405,0.00017002,88252.0,88238.0,0.0113419]
[1766968387607,0.00017002,88252.0,88239.0,0.01773296]
[1766968387792,0.00017002,88252.0,88240.0,0.01773296]
[1766968387996,0.0113404,88251.0,88230.0,0.09644]
[1766968388195,0.0113404,88251.0,88231.0,0.01773326]
[1766968388396,0.0113404,88251.0,88232.0,0.01773326]
[1766968388596,0.0113404,88251.0,88233.0,0.01773326]
[1766968388905,0.00017002,88252.0,88229.0,0.09644]
[1766968388906,0.0113409,88247.0,88229.0,0.09644]
[1766968389107,0.0113409,88247.0,88229.0,0.00017002]
[1766968389602,0.00017002,88252.0,88229.0,0.00017002]
[1766968389807,0.00017002,88252.0,88237.0,0.011342]
[1766968390396,0.00017002,88252.0,88230.0,0.04035211]
[1766968390700,0.00017002,88252.0,88229.0,0.05186523]
[1766968390898,0.0113403,88251.0,88230.0,0.154]
[1766968392004,0.0113403,88251.0,88229.0,0.00017002]
[1766968392005,0.00017002,88252.0,88229.0,0.00017002]
[1766968392200,0.01151032,88252.0,88230.0,0.154]
[1766968393006,0.00017002,88252.0,88233.0,0.0113425]
[1766968393208,0.00017002,88252.0,88230.0,0.26850141]
[1766968394201,0.00017002,88252.0,88235.0,0.0113423]
[1766968394398,2e-08,88252.0,88231.0,0.04035211]
[1766968394810,2e-08,88252.0,88240.0,0.0113416]
[1766968395006,2e-08,88252.0,88236.0,0.0113422]
[1766968395315,2e-08,88252.0,88231.0,0.04035211]
[1766968395509,0.0113404,88251.0,88232.0,0.05756]
[1766968395704,0.0113408,88248.0,88232.0,0.05756]
[1766968396612,0.0113408,88248.0,88229.0,0.00017002]
[1766968396806,0.11450141,88250.0,88229.0,0.00017002]
[1766968397108,2e-08,88252.0,88229.0,0.00017002]
[1766968397109,0.15396,88249.0,88229.0,0.00017002]
[1766968397318,0.05752,88249.0,88233.0,0.0113426]
[1766968397513,2e-08,88252.0,88230.0,0.17202141]
[1766968398020,2e-08,88252.0,88230.0,0.05752]
[1766968398203,2e-08,88252.0,88242.0,0.0113414]
[1766968399104,2e-08,88252.0,88240.0,0.11450141]
[1766968399411,0.0113381,88269.0,88246.0,0.0113409]
[1766968399611,0.15396,88268.0,88246.0,0.0113409]
[1766968400409,0.00017002,88266.0,88248.0,0.00017002]
[1766968400913,0.0113386,88265.0,88249.0,0.01773057]
[1766968401116,0.00017002,88266.0,88248.0,9e-08]
[1766968401304,0.0113394,88258.0,88248.0,9e-08]
[1766968401501,0.00017002,88266.0,88248.0,9e-08]
[1766968401702,0.0113398,88256.0,88248.0,9e-08]
[1766968401908,0.00017002,88266.0,88248.0,9e-08]
[1766968402416,0.0113386,88265.0,88248.0,9e-08]
[1766968402811,0.0113404,88251.0,88248.0,9e-08]
[1766968403018,0.0113408,88248.0,88236.0,0.15396]
[1766968403318,0.09644,88255.0,88228.0,0.05752]
[1766968403714,0.09644,88255.0,88226.0,0.05752]
[1766968403715,0.0113418,88240.0,88226.0,0.05752]
[1766968403908,0.0113422,88237.0,88224.0,0.00017002]
[1766968404419,0.00017002,88242.0,88224.0,0.00017002]
[1766968404420,0.011342,88238.0,88224.0,0.00017002]
[1766968404605,0.00017002,88242.0,88224.0,0.00017002]
[1766968404802,0.0113421,88238.0,88224.0,0.00017002]
[1766968405006,0.00017002,88242.0,88224.0,0.00017002]
[1766968405007,0.0113428,88232.0,88224.0,0.00017002]
[1766968405207,0.05748,88239.0,88208.0,0.04035211]
[1766968405413,0.0113423,88236.0,88208.0,0.09644]
[1766968405618,0.05748,88239.0,88208.0,0.09644]
[1766968405619,0.0113439,88224.0,88208.0,0.09644]
[1766968406026,0.15392,88229.0,88200.0,0.04035211]
[1766968406027,0.0113445,88219.0,88200.0,0.04035211]
[1766968406209,0.00017002,88218.0,88194.0,0.04035211]
[1766968406410,0.0113452,88214.0,88192.0,0.04035211]
[1766968406716,0.0113452,88214.0,88195.0,0.09644]
[1766968407106,0.00017002,88218.0,88194.0,0.05748]
[1766968407323,0.00017002,88218.0,88195.0,0.0113475]
[1766968409721,0.0113449,88216.0,88195.0,0.05748]
[1766968409924,0.0113449,88216.0,88193.0,0.01361547]
[1766968410223,0.0113449,88216.0,88194.0,0.05748]
[1766968412118,0.00017002,88218.0,88193.0,0.01361547]
[1766968412119,0.0113464,88204.0,88193.0,0.00226777]
[1766968412315,0.00017002,88218.0,88193.0,7e-08]
[1766968412316,0.0113468,88201.0,88193.0,7e-08]
[1766968412514,0.0113462,88206.0,88190.0,0.05748]
[1766968412820,0.05748,88215.0,88188.0,0.09644]
[1766968413022,0.0113463,88205.0,88188.0,0.09644]
[1766968413223,0.05748,88206.0,88189.0,0.01774205]
[1766968413521,0.05748,88206.0,88188.0,0.09644]
[1766968413714,0.05748,88206.0,88189.0,0.01774208]
[1766968413912,0.0113468,88202.0,88188.0,0.09644]
[1766968414422,0.0688262,88206.0,88182.0,0.0113491]
[1766968414625,0.00017002,88203.0,88186.0,0.05748]
[1766968414921,0.0113467,88202.0,88186.0,0.05748]
[1766968415519,0.0113472,88198.0,88185.0,0.05744]
[1766968416025,0.0113467,88202.0,88185.0,0.05744]
[1766968417522,0.0113472,88198.0,88179.0,0.00013199]
[1766968418627,0.00017002,88203.0,88183.0,0.011349]
[1766968419019,0.00017002,88203.0,88179.0,0.00013199]
[1766968419020,0.00017002,88203.0,88179.0,0.01148149]
[1766968419727,0.0113471,88199.0,88179.0,0.00013199]
[1766968420527,0.0113473,88197.0,88179.0,0.00013199]
[1766968420733,0.15388,88196.0,88180.0,0.0113494]
[1766968421235,0.15388,88196.0,88179.0,0.00013199]
[1766968421422,0.15388,88196.0,88179.0,0.01148159]
[1766968421735,0.15388,88196.0,88185.0,0.0113487]
[1766968422032,0.15388,88196.0,88181.0,0.0113492]
[1766968422418,0.15388,88196.0,88184.0,0.0113489]
[1766968424135,0.15388,88196.0,88180.0,0.0113494]
[1766968425533,0.15388,88196.0,88179.0,0.00013199]
[1766968425534,0.0113475,88195.0,88179.0,0.00013199]
[1766968427428,0.011348,88192.0,88179.0,1.99e-06]
[1766968427624,0.15388,88196.0,88166.0,0.01303838]
[1766968427832,0.15388,88196.0,88165.0,0.1652314]
[1766968428032,0.0113486,88187.0,88165.0,0.1652314]
[1766968428233,0.00017002,88185.0,88165.0,0.1652314]
[1766968428429,0.011349,88184.0,88165.0,0.0574]
[1766968428637,8.292e-05,88184.0,88163.0,0.00226854]
[1766968428927,0.0113499,88177.0,88163.0,0.00226854]
[1766968429735,0.0574,88178.0,88163.0,0.00226854]
[1766968430136,0.0687498,88178.0,88163.0,0.00226854]
[1766968430332,0.0113501,88175.0,88150.0,0.04181838]
[1766968430638,0.0113501,88175.0,88155.0,0.15388]
[1766968430837,0.0574,88178.0,88150.0,0.04181838]
[1766968431140,0.0574,88178.0,88153.0,0.09648]
[1766968431329,0.0113503,88174.0,88153.0,0.0574]
[1766968431536,0.0113503,88174.0,88153.0,0.15388]
[1766968432037,0.0113503,88174.0,88154.0,0.01774855]
[1766968432232,0.0113503,88174.0,88155.0,0.01774855]
[1766968432433,0.0113503,88174.0,88153.0,0.15388]
[1766968432634,0.0113507,88171.0,88154.0,0.01774855]
[1766968432835,0.0113511,88168.0,88155.0,0.01774855]
[1766968433032,0.0001037,88167.0,88152.0,0.0574]
[1766968433337,0.0001037,88167.0,88150.0,0.03046518]
[1766968433338,0.0113513,88166.0,88153.0,0.01774866]
[1766968433644,0.0001037,88167.0,88150.0,0.00022666]
[1766968433838,0.0001037,88167.0,88150.0,0.01157996]
[1766968434233,0.0001037,88167.0,88153.0,0.0113529]
[1766968434633,3e-08,88168.0,88162.0,0.0113517]
[1766968435039,3e-08,88168.0,88158.0,0.0113522]
[1766968435434,3e-08,88168.0,88161.0,0.0113518]
[1766968435936,3e-08,88168.0,88156.0,0.00017013]
[1766968438734,3e-08,88168.0,88152.0,0.05736]
[1766968438735,0.0113511,88167.0,88150.0,0.00022666]
[1766968440040,3e-08,88168.0,88150.0,0.00022666]
[1766968440641,3e-08,88168.0,88156.0,0.0113525]
[1766968441135,3e-08,88168.0,88159.0,0.0113521]
[1766968441639,3e-08,88168.0,88155.0,0.09648]
[1766968442048,3e-08,88168.0,88159.0,0.011352]
[1766968442937,3e-08,88168.0,88157.0,0.05736]
[1766968443539,3e-08,88168.0,88154.0,0.05736]
[1766968443848,0.0113518,88162.0,88150.0,0.00022666]
[1766968444146,0.0113522,88159.0,88150.0,0.00022666]
[1766968444336,0.0113517,88163.0,88150.0,0.00022666]
[1766968444543,0.0687112,88167.0,88150.0,0.00022666]
[1766968444735,0.05736,88167.0,88150.0,0.00022666]
[1766968444942,3e-08,88168.0,88151.0,0.0113531]
[1766968445442,3e-08,88168.0,88150.0,0.00022666]
[1766968445942,0.0113516,88164.0,88150.0,0.00022666]
[1766968446538,0.011352,88161.0,88150.0,0.00022666]
[1766968446748,3e-08,88168.0,88148.0,0.02503749]
[1766968447453,0.0113514,88165.0,88148.0,0.02503749]
[1766968448855,3e-08,88168.0,88148.0,0.02503749]
[1766968449151,3e-08,88168.0,88152.0,0.011353]
[1766968449454,3e-08,88168.0,88148.0,0.02503749]
[1766968450653,3e-08,88168.0,88152.0,0.011353]
[1766968451354,3e-08,88168.0,88148.0,0.03639099]
[1766968451653,0.01135103,88168.0,88148.0,0.03639099]
[1766968451846,0.01135103,88168.0,88149.0,0.01770449]
[1766968452047,0.01135103,88168.0,88150.0,0.01770449]
[1766968452252,0.01135103,88168.0,88151.0,0.01770449]
[1766968452454,0.0113514,88165.0,88152.0,0.01770449]
[1766968452648,0.0113514,88165.0,88153.0,0.01770449]
[1766968452952,0.0113514,88165.0,88154.0,0.01770449]
[1766968453148,0.0113514,88165.0,88155.0,0.01770449]
[1766968453450,0.0113514,88165.0,88148.0,0.02503749]
[1766968453646,3e-08,88168.0,88148.0,0.05527601]
[1766968454044,0.01135103,88168.0,88149.0,0.0113534]
[1766968454347,3e-08,88168.0,88149.0,0.04159192]
[1766968455150,3e-08,88168.0,88150.0,0.03023852]
[1766968455338,3e-08,88168.0,88153.0,0.03023852]
[1766968456151,3e-08,88168.0,88154.0,0.03023852]
[1766968456354,3e-08,88168.0,88154.0,0.04159122]
[1766968456545,3e-08,88168.0,88156.0,0.03023852]
[1766968456746,3e-08,88168.0,88158.0,0.03023852]
[1766968456947,3e-08,88168.0,88159.0,0.09891052]
[1766968457346,3e-08,88168.0,88160.0,0.03023852]
[1766968457755,3e-08,88168.0,88159.0,0.08755852]
[1766968457950,3e-08,88168.0,88160.0,0.04159052]
[1766968458153,3e-08,88168.0,88160.0,0.03023852]
[1766968458357,3e-08,88168.0,88166.0,0.0113512]
[1766968459357,3e-08,88168.0,88162.0,0.04159022]
[1766968459553,3e-08,88168.0,88163.0,0.03023852]
[1766968460150,3e-08,88168.0,88162.0,0.04159022]
[1766968460451,3e-08,88168.0,88164.0,0.0113514]
[1766968460653,3e-08,88168.0,88167.0,0.0113511]
[1766968460850,3e-08,88168.0,88167.0,0.0686711]
[1766968461560,0.0113473,88197.0,88176.0,0.0113499]
[1766968461750,0.09652,88199.0,88177.0,0.05732]
[1766968461950,0.09652,88199.0,88182.0,0.0113491]
[1766968462359,0.09652,88207.0,88179.0,0.09652]
[1766968462664,0.00017013,88202.0,88182.0,0.0113492]
[1766968462854,0.01151683,88202.0,88182.0,0.0113492]
[1766968463463,0.01151683,88202.0,88183.0,0.15384]
[1766968464163,0.011347,88199.0,88184.0,0.15384]
[1766968464457,0.011347,88199.0,88185.0,0.09652]
[1766968465559,0.11472025,88200.0,88169.0,0.0113508]
[1766968465753,0.0113481,88191.0,88170.0,0.15384]
[1766968466156,0.05732,88200.0,88170.0,0.26856025]
[1766968466568,0.05732,88200.0,88170.0,0.15384]
[1766968466862,0.011348,88191.0,88170.0,0.15384]
[1766968467060,0.011348,88191.0,88171.0,0.05732]
[1766968467254,0.17204025,88200.0,88171.0,0.1538]
[1766968467450,0.0113492,88183.0,88172.0,0.05732]
[1766968467654,0.17204025,88200.0,88172.0,0.1538]
[1766968467655,0.0113481,88191.0,88172.0,0.1538]
[1766968467860,0.0113457,88210.0,88172.0,0.1538]
[1766968467861,0.08150222,88231.0,88172.0,0.03]
[1766968468061,0.14321177,88237.0,88172.0,0.03]
[1766968468062,0.06648,88228.0,88213.0,0.11472025]
[1766968468252,0.09648,88233.0,88223.0,0.0113439]
[1766968468453,0.01360632,88253.0,88226.0,0.0113435]
[1766968468662,0.00226622,88253.0,88220.0,0.11472025]
[1766968468862,0.0574,88252.0,88233.0,0.0113426]
[1766968469059,0.00017002,88245.0,88229.0,0.0113431]
[1766968469262,0.00017002,88245.0,88228.0,0.00017002]
[1766968469651,0.11472025,88240.0,88201.0,0.03031353]
[1766968469853,0.0113427,88233.0,88209.0,0.0113456]
[1766968470161,0.011342,88238.0,88209.0,0.0113456]
[1766968470460,0.011342,88238.0,88212.0,0.0113452]
[1766968470664,0.15388,88239.0,88207.0,0.0113459]
[1766968470965,0.0113429,88232.0,88203.0,0.0113465]
[1766968471365,0.0113431,88230.0,88204.0,0.01303842]
[1766968471557,0.15384,88229.0,88204.0,0.01303842]
[1766968471758,0.15384,88229.0,88203.0,0.0113465]
[1766968472064,0.15384,88229.0,88204.0,0.01303842]